bitfinex-derivatives/quotes_SOLF0:USTF0_20250609
["timestamp","ask_amount","ask_price","bid_price","bid_amount"]
[1749499470659,6.4069,155.99,155.97,6.44958744]
[1749499471858,6.4069,155.99,155.97,0.04208744]
[1749499472758,6.4073,155.98,155.97,0.04208744]
[1749499472960,5.1273062,155.98,155.97,0.04208744]
[1749499473358,5.1273062,155.98,155.97,4.9315022]
[1749499474754,11.5346062,155.98,155.97,4.9315022]
[1749499475160,16.42402096,155.98,155.97,0.04208744]
[1749499475358,6.4081,155.96,155.95,32.22]
[1749499475559,10.01672096,155.96,155.93,4.88941476]
[1749499475755,6.4093,155.93,155.92,37.08941476]
[1749499477252,6.4093,155.93,155.92,32.2]
[1749499478058,5.12551709,155.93,155.92,32.2]
[1749499478459,0.04208744,155.94,155.92,38.6097]
[1749499478961,0.04208744,155.94,155.93,6.4093]
[1749499479161,5.16722334,155.94,155.93,6.4093]
[1749499479661,0.04208744,155.94,155.93,6.4093]
[1749499480560,5.15274593,155.94,155.93,6.4093]
[1749499481167,0.04208744,155.94,155.93,6.4093]
[1749499481870,8.744e-05,155.94,155.93,6.4093]
[1749499483368,6.4071,155.99,155.96,6.4081]
[1749499483570,5.10533083,155.98,155.96,39.84522783]
[1749499483763,5.10533083,155.97,155.96,46.25332783]
[1749499484367,6.4066,156.0,155.98,6.4072]
[1749499484569,5.11401399,155.99,155.98,6.4072]
[1749499486068,5.11401399,155.99,155.98,14.05242783]
[1749499486674,5.11556399,156.02,155.98,7.64522783]
[1749499486871,6.4054,156.03,156.01,7.64522783]
[1749499487063,5.11599238,156.02,156.01,7.64522783]
[1749499487667,5.11599238,156.02,156.0,32.2]
[1749499487864,5.11599238,156.01,156.0,32.2]
[1749499488273,5.11599238,156.01,155.98,0.04301675]
[1749499488570,5.11599238,156.0,155.98,0.04301675]
[1749499488775,7.64522783,156.03,155.98,0.04301675]
[1749499488971,6.4069,155.99,155.98,0.04301675]
[1749499489973,11.53249355,156.0,155.98,0.04301675]
[1749499490274,6.4066,156.0,155.98,0.04301675]
[1749499493275,5.12092865,155.99,155.98,0.04301675]
[1749499493979,5.12092865,155.99,155.98,6.45031675]
[1749499495378,5.12092865,155.99,155.98,14.09554458]
[1749499495780,5.12092865,156.0,155.99,6.4069]
[1749499500980,11.52742865,156.0,155.98,14.09534458]
[1749499501182,6.4065,156.0,155.98,14.09534458]
[1749499501685,6.4063,156.01,155.98,14.09534458]
[1749499501881,5.11865197,156.0,155.98,14.09534458]
[1749499502082,5.11865197,155.99,155.98,14.09534458]
[1749499502282,5.11865197,156.0,155.99,6.4069]
[1749499502484,11.52515197,156.0,155.98,7.68824458]
[1749499502678,6.4065,156.0,155.98,7.68824458]
[1749499503678,6.4062,156.01,155.98,14.09534458]
[1749499503880,5.11794613,156.0,155.98,14.09534458]
[1749499504081,6.4062,156.01,155.98,14.09534458]
[1749499504283,5.11704562,156.0,155.98,14.09534458]
[1749499504478,2.2141,156.02,155.98,14.09534458]
[1749499504677,5.11662948,156.01,155.98,14.09534458]
[1749499504879,5.11662948,156.0,155.98,14.09534458]
[1749499505179,6.4064,156.01,155.98,14.09534458]
[1749499505383,5.1164989,156.0,155.98,6.45011675]
[1749499505584,6.4064,156.01,155.98,6.45011675]
[1749499505774,5.11668299,156.0,155.98,6.45011675]
[1749499505977,6.4064,156.01,155.98,6.45011675]
[1749499506177,5.11599614,156.0,155.98,6.45011675]
[1749499506383,6.4065,156.0,155.98,6.45011675]
[1749499506586,6.4065,156.0,155.99,4.88815119]
[1749499506886,11.52230799,156.0,155.99,4.88815119]
[1749499507084,5.11580799,156.0,155.99,4.88815119]
[1749499507982,5.11580799,156.0,155.99,11.29505119]
[1749499511290,6.4058,156.02,156.0,6.4064]
[1749499511585,5.11452611,156.01,156.0,6.4064]
[1749499512489,5.11452611,156.01,155.99,6.4067]
[1749499512683,6.4057,156.02,156.0,4.88815119]
[1749499512985,6.4057,156.02,156.01,4.88815119]
[1749499513183,11.52119039,156.02,156.01,4.88815119]
[1749499513687,5.11549039,156.02,156.01,4.88815119]
[1749499516690,11.52109039,156.02,156.01,4.88815119]
[1749499524398,5.11549039,156.02,156.01,11.29415119]
[1749499524903,5.11549039,156.02,156.01,43.47415119]
[1749499525604,5.96000432,156.06,156.04,4.88815119]
[1749499525905,5.96000432,156.06,156.05,4.88815119]
[1749499526106,12.36400432,156.06,156.05,4.88815119]
[1749499526400,6.404,156.06,156.05,4.88815119]
[1749499527808,10.84815551,156.07,156.03,0.04650161]
[1749499528004,4.88815119,156.05,156.03,0.04650161]
[1749499528301,10.84815551,156.04,156.0,4.88815119]
[1749499528495,4.88815119,156.03,156.0,4.88815119]
[1749499528900,10.84815551,156.04,156.01,4.88815119]
[1749499529201,6.4056,156.02,156.01,0.04318887]
[1749499531105,12.36560432,156.02,156.01,0.04318887]
[1749499531810,6.4056,156.02,156.01,0.04318887]
[1749499537511,11.5126137,156.02,156.01,0.04318887]
[1749499539211,6.4056,156.02,156.01,0.04318887]
[1749499539809,11.53578825,156.02,156.01,0.04318887]
[1749499541308,0.04042127,156.04,156.01,0.04318887]
[1749499541609,5.13086335,156.03,156.02,7.63718507]
[1749499543015,5.13086335,156.03,156.02,14.04278507]
[1749499544206,5.13086335,156.03,156.02,7.63718507]
[1749499545118,6.44552127,156.04,156.02,7.63718507]
[1749499545318,0.04042127,156.04,156.02,7.63718507]
[1749499545618,0.04042127,156.04,156.02,39.79718507]
[1749499546214,6.44522127,156.04,156.02,39.79718507]
[1749499546720,0.04042127,156.04,156.02,46.20258507]
[1749499548520,0.04042127,156.04,156.03,6.4052]
[1749499549218,0.04042127,156.04,156.03,11.2901877]
[1749499549816,0.04042127,156.04,156.03,4.8849877]
[1749499553423,6.44522127,156.04,156.03,4.8849877]
[1749499554122,0.04042127,156.04,156.03,4.8849877]
[1749499554922,6.44522127,156.04,156.03,4.8849877]
[1749499559719,0.04042127,156.04,156.03,4.8849877]
[1749499561919,6.44522127,156.04,156.03,4.8849877]
[1749499562320,0.04042127,156.04,156.03,4.8849877]
[1749499563225,6.44522127,156.04,156.03,4.8849877]
[1749499563725,0.04042127,156.04,156.03,4.8849877]
[1749499564425,6.44522127,156.04,156.03,4.8849877]
[1749499566831,0.04042127,156.04,156.03,11.2901877]
[1749499567437,6.4033,156.08,156.03,4.8849877]
[1749499567723,10.85106863,156.09,156.02,32.16]
[1749499567928,5.13877345,156.07,156.05,4.8849877]
[1749499568128,6.4041,156.06,156.05,4.8849877]
[1749499568322,5.13877345,156.07,156.04,0.04435127]
[1749499568518,10.02376115,156.07,156.04,0.04435127]
[1749499568725,10.02376115,156.07,156.04,4.92933897]
[1749499568926,6.4044,156.05,156.04,4.92933897]
[1749499571236,4.8849877,156.08,156.04,4.92933897]
[1749499571532,14.49501528,156.11,156.04,4.92933897]
[1749499571533,5.13795072,156.07,156.04,0.04435127]
[1749499571832,5.13795072,156.06,156.04,0.04435127]
[1749499572033,5.96748262,156.1,156.05,6.4041]
[1749499572223,5.13866321,156.09,156.05,6.4041]
[1749499572422,5.13866321,156.08,156.05,6.4041]
[1749499572625,5.13866321,156.07,156.05,6.4041]
[1749499572828,17.42237032,156.11,156.06,4.8849877]
[1749499573035,5.13909854,156.1,156.07,4.8849877]
[1749499573237,6.4034,156.08,156.07,4.93119778]
[1749499573430,11.54249854,156.08,156.07,4.93119778]
[1749499574132,5.13909854,156.08,156.07,11.33479778]
[1749499574335,5.13909854,156.08,156.07,4.93119778]
[1749499574531,5.13909854,156.1,156.07,4.93119778]
[1749499574726,5.13909854,156.09,156.08,4.8849877]
[1749499575734,11.54219854,156.09,156.08,4.8849877]
[1749499576236,6.4032,156.08,156.07,0.04621008]
[1749499576839,6.4032,156.08,156.07,4.93119778]
[1749499578031,5.1419071,156.1,156.07,11.33449778]
[1749499578235,6.5699,156.11,156.07,11.33449778]
[1749499578236,10.85247032,156.14,156.09,4.8849877]
[1749499578434,5.14309806,156.13,156.1,4.93345661]
[1749499578638,5.14002619,156.13,156.12,4.8849877]
[1749499578834,10.02501389,156.15,156.11,4.8849877]
[1749499579034,5.14002619,156.14,156.1,32.16846891]
[1749499579237,4.8849877,156.15,156.1,32.16846891]
[1749499579238,5.14002619,156.13,156.11,4.8849877]
[1749499579439,5.14072693,156.14,156.12,4.8849877]
[1749499579739,4.8849877,156.15,156.12,4.8849877]
[1749499579740,5.14626309,156.13,156.12,4.8849877]
[1749499579941,5.14626309,156.14,156.12,4.8849877]
[1749499580238,11.54736309,156.13,156.12,4.8849877]
[1749499580438,6.5648,156.16,156.12,4.8849877]
[1749499580629,5.14617184,156.15,156.13,4.8849877]
[1749499580833,5.14617184,156.14,156.13,4.8849877]
[1749499581141,5.14617184,156.15,156.13,4.8849877]
[1749499581342,11.54707184,156.14,156.13,4.8849877]
[1749499582138,5.14617184,156.14,156.13,4.8849877]
[1749499582341,6.4005,156.15,156.13,4.8849877]
[1749499582533,6.4005,156.15,156.14,4.8849877]
[1749499582734,11.54539055,156.15,156.14,4.8849877]
[1749499583441,6.4005,156.15,156.13,4.8849877]
[1749499583642,6.4007,156.14,156.13,4.8849877]
[1749499588945,6.4007,156.14,156.12,0.04397197]
[1749499589145,6.4007,156.14,156.13,4.8849877]
[1749499589346,6.4007,156.14,156.12,0.04397197]
[1749499589547,6.4007,156.14,156.13,4.8849877]
[1749499590438,6.4005,156.15,156.13,4.8849877]
[1749499590637,6.4005,156.15,156.14,4.8849877]
[1749499593043,6.4011,156.14,156.12,0.04397197]
[1749499593249,4.8849877,156.15,156.12,4.92895967]
[1749499593554,10.04211734,156.15,156.12,4.92895967]
[1749499593753,4.8849877,156.15,156.12,4.92895967]
[1749499593956,6.4011,156.13,156.12,4.92895967]
[1749499601156,6.4009,156.14,156.12,4.92895967]
[1749499601353,5.15130669,156.16,156.13,4.8849877]
[1749499601558,5.15130669,156.17,156.15,4.8849877]
[1749499602258,5.15130669,156.17,156.16,4.8849877]
[1749499602456,5.15130669,156.18,156.16,4.8849877]
[1749499603256,6.3999,156.16,156.15,7.66686866]
[1749499603764,6.3996,156.17,156.15,7.66686866]
[1749499604160,11.55142823,156.17,156.15,7.66686866]
[1749499604360,6.3996,156.17,156.15,7.66686866]
[1749499604755,11.55797764,156.17,156.15,7.66686866]
[1749499604952,6.3996,156.17,156.15,7.66686866]
[1749499605359,11.55768819,156.18,156.15,7.66686866]
[1749499605762,5.15848819,156.17,156.15,7.66686866]
[1749499606057,5.15848819,156.17,156.15,14.06686866]
[1749499606467,5.15848819,156.17,156.16,6.3999]
[1749499606659,6.3987,156.19,156.15,7.66686866]
[1749499606660,5.15848819,156.18,156.15,0.04479513]
[1749499606862,5.15848819,156.2,156.15,7.66686866]
[1749499607058,5.15848819,156.19,156.15,7.66686866]
[1749499607259,5.15848819,156.18,156.15,7.66686866]
[1749499607467,5.15848819,156.2,156.15,7.66686866]
[1749499607659,5.15848819,156.19,156.15,7.66686866]
[1749499607860,5.15848819,156.18,156.15,7.66686866]
[1749499608059,5.15848819,156.2,156.15,7.66686866]
[1749499608263,5.15848819,156.19,156.15,7.66686866]
[1749499608458,5.15848819,156.18,156.15,7.66686866]
[1749499608656,5.15848819,156.2,156.15,7.66686866]
[1749499608860,5.15848819,156.19,156.15,7.66686866]
[1749499609063,5.15848819,156.18,156.15,7.66686866]
[1749499609259,6.3999,156.17,156.15,7.66686866]
[1749499610765,11.5695648,156.17,156.15,7.66686866]
[1749499610965,6.3999,156.17,156.15,7.66686866]
[1749499611355,6.3999,156.16,156.15,7.66686866]
[1749499613569,6.3997,156.17,156.15,14.06716866]
[1749499614068,6.3997,156.17,156.15,7.66686866]
[1749499614266,11.57006018,156.17,156.15,7.66686866]
[1749499614468,6.3997,156.17,156.15,7.66686866]
[1749499615167,6.3999,156.16,156.15,7.66686866]
[1749499616966,5.17552177,156.19,156.15,14.06676866]
[1749499617174,5.17552177,156.18,156.15,14.06676866]
[1749499617371,5.96748262,156.21,156.15,14.06676866]
[1749499617568,6.3993,156.18,156.15,14.06676866]
[1749499617768,5.17777145,156.17,156.15,14.06676866]
[1749499617965,5.17787825,156.17,156.15,14.06676866]
[1749499618169,5.17787825,156.17,156.16,6.3999]
[1749499618977,5.17944767,156.17,156.16,6.3999]
[1749499620773,11.57904767,156.17,156.15,14.06706866]
[1749499620969,5.96748262,156.2,156.15,7.66686866]
[1749499621169,6.3999,156.16,156.15,0.04479513]
[1749499621373,11.57968571,156.16,156.15,0.04479513]
[1749499625477,11.57968571,156.16,156.15,4.92339244]
[1749499628280,11.57968571,156.16,156.15,0.04479513]
[1749499628478,11.57968571,156.16,156.15,4.92339244]
[1749499631683,11.57968571,156.16,156.15,0.04479513]
[1749499631887,11.57968571,156.16,156.15,4.92339244]
[1749499635392,5.17978571,156.16,156.15,11.32369244]
[1749499637986,5.17978571,156.16,156.15,4.92339244]
[1749499638781,5.17978571,156.16,156.15,11.32369244]
[1749499639287,11.57968571,156.16,156.15,4.92339244]
[1749499639479,5.17978571,156.16,156.15,4.92339244]
[1749499641278,5.17978571,156.16,156.15,11.32369244]
[1749499645885,5.17978571,156.16,156.15,4.92339244]
[1749499646988,5.17978571,156.16,156.15,11.32369244]
[1749499648092,5.17978571,156.16,156.15,4.92339244]
[1749499649492,5.17978571,156.16,156.15,0.04479513]
[1749499649693,11.57968571,156.16,156.15,4.92339244]
[1749499650694,5.17978571,156.16,156.15,11.32369244]
[1749499661415,5.96748262,156.2,156.15,0.04479513]
[1749499661716,5.19530245,156.19,156.18,4.87859731]
[1749499661906,5.19530245,156.19,156.16,6.3998]
[1749499662213,5.19530245,156.18,156.17,4.87859731]
[1749499662412,11.59460245,156.18,156.15,6.44489513]
[1749499662614,5.19530245,156.17,156.16,4.87859731]
[1749499663312,5.19530245,156.17,156.16,11.27849731]
[1749499669322,11.59480245,156.17,156.16,4.87859731]
[1749499669920,5.19530245,156.17,156.16,11.27849731]
[1749499673326,11.59480245,156.17,156.16,4.87859731]
[1749499674026,11.59779359,156.17,156.16,4.87859731]
[1749499674323,11.59779359,156.17,156.16,36.89859731]
[1749499681028,11.59779359,156.17,156.16,43.29849731]
[1749499681230,5.19829359,156.17,156.16,43.29849731]
[1749499686942,5.19829359,156.17,156.16,43.29736905]
[1749499687143,5.19829359,156.17,156.16,38.4199]
[1749499687442,5.19829359,156.17,156.16,43.29736905]
[1749499690840,5.19807227,156.17,156.16,43.29736905]
[1749499691443,5.19807227,156.17,156.16,43.29763411]
[1749499697747,11.59757227,156.17,156.16,32.02]
[1749499698041,11.59757227,156.17,156.16,36.89773411]
[1749499698441,5.19807227,156.17,156.16,43.29763411]
[1749499702939,5.19807227,156.17,156.16,43.29625488]
[1749499704246,5.19807227,156.17,156.16,38.4199]
[1749499704447,5.19807227,156.17,156.16,43.29625488]
[1749499705446,6.3986,156.2,156.18,6.399]
[1749499705650,6.3986,156.2,156.19,4.87635488]
[1749499705844,5.19770584,156.2,156.19,4.87635488]
[1749499706044,5.19770584,156.2,156.19,11.27505488]
[1749499706245,5.19770584,156.2,156.19,4.87635488]
[1749499706548,11.59600584,156.2,156.19,4.87635488]
[1749499710146,6.3983,156.2,156.19,4.87635488]
[1749499710342,11.60065623,156.2,156.19,4.87635488]
[1749499711450,11.60065623,156.2,156.18,6.399]
[1749499711649,5.20235623,156.19,156.18,6.399]
[1749499711950,5.20235623,156.19,156.18,11.27535488]
[1749499712342,5.20235623,156.19,156.18,6.399]
[1749499712544,5.20235623,156.19,156.18,11.27535488]
[1749499712748,5.20235623,156.19,156.18,6.399]
[1749499712949,5.20235623,156.19,156.16,32.02]
[1749499713153,5.20235623,156.18,156.17,4.87635488]
[1749499713443,6.3995,156.17,156.16,32.02]
[1749499713653,11.60185623,156.17,156.16,36.89635488]
[1749499720354,5.20235623,156.17,156.16,36.89635488]
[1749499720558,5.20235623,156.17,156.16,43.29625488]
[1749499720954,11.60185623,156.17,156.16,32.02]
[1749499721153,5.20235623,156.17,156.16,36.89635488]
[1749499722449,5.20235623,156.17,156.16,43.29625488]
[1749499723956,6.3984,156.2,156.18,6.3989]
[1749499724153,6.3984,156.2,156.19,4.87635488]
[1749499724462,11.58193325,156.2,156.19,4.87635488]
[1749499729356,5.18353325,156.2,156.19,11.27505488]
[1749499731958,5.18353325,156.2,156.19,43.21505488]
[1749499734362,11.58183325,156.2,156.19,36.81635488]
[1749499736160,11.58183325,156.2,156.19,31.94]
[1749499736360,11.58183325,156.2,156.19,36.81635488]
[1749499738161,5.18353325,156.2,156.19,36.81635488]
[1749499742565,5.18353325,156.2,156.19,43.21505488]
[1749499750962,6.3981,156.21,156.19,43.21505488]
[1749499751162,5.18472947,156.2,156.19,38.3387]
[1749499751358,2.131,156.22,156.2,6.398]
[1749499751359,8.5286,156.22,156.2,6.398]
[1749499751565,5.96915758,156.26,156.19,31.98342192]
[1749499751760,6.3957,156.27,156.19,31.98342192]
[1749499751961,5.96915758,156.28,156.19,31.98342192]
[1749499752273,5.96915758,156.28,156.26,4.87161175]
[1749499752572,6.3953,156.28,156.26,4.87161175]
[1749499752971,6.3954,156.27,156.26,4.87161175]
[1749499766587,6.3946,156.3,156.26,4.87161175]
[1749499766789,6.3946,156.3,156.29,4.87161175]
[1749499769489,6.3946,156.29,156.27,6.3953]
[1749499769695,6.3946,156.29,156.28,4.87161175]
[1749499769888,4.5134,156.31,156.28,4.87161175]
[1749499770190,4.5134,156.31,156.3,4.87161175]
[1749499770590,10.9072,156.31,156.3,4.87161175]
[1749499771190,6.3942,156.3,156.29,4.91489916]
[1749499771392,4.5134,156.31,156.29,4.91489916]
[1749499771590,4.5134,156.31,156.3,4.87161175]
[1749499772190,6.3933,156.33,156.3,11.26581175]
[1749499772391,11.47328399,156.33,156.31,4.87161175]
[1749499772590,6.3933,156.33,156.31,4.87161175]
[1749499772894,6.3934,156.32,156.31,4.87161175]
[1749499773498,5.08010318,156.33,156.31,4.87161175]
[1749499773696,5.08010318,156.34,156.31,4.87161175]
[1749499774494,6.3934,156.32,156.31,4.87161175]
[1749499776794,9.95171493,156.33,156.29,31.94328741]
[1749499776995,4.87161175,156.33,156.29,36.81489916]
[1749499777496,6.3942,156.3,156.29,36.81489916]
[1749499778593,6.394,156.31,156.29,36.81489916]
[1749499778899,9.96113268,156.34,156.3,4.87161175]
[1749499779098,4.87161175,156.33,156.3,4.87161175]
[1749499779300,6.3942,156.3,156.29,36.81489916]
[1749499780797,6.3942,156.3,156.29,31.94328741]
[1749499780997,6.3942,156.3,156.29,0.04328741]
[1749499781203,6.3942,156.3,156.29,4.91489916]
[1749499784206,6.3942,156.3,156.29,0.04328741]
[1749499784904,6.3942,156.3,156.29,4.91489916]
[1749499791306,6.3942,156.3,156.29,0.04328741]
[1749499794915,6.3942,156.3,156.29,4.91489916]
[1749499795614,6.3942,156.3,156.29,0.04328741]
[1749499796116,11.49384376,156.3,156.29,0.04328741]
[1749499796911,11.49637602,156.3,156.29,4.91489916]
[1749499798119,5.10217602,156.3,156.29,0.04328741]
[1749499798416,5.10217602,156.3,156.29,4.91489916]
[1749499798611,11.49637602,156.3,156.29,4.91489916]
[1749499800013,6.3942,156.3,156.29,4.91489916]
[1749499801617,6.3942,156.3,156.29,0.04328741]
[1749499806426,11.49993293,156.3,156.29,0.04328741]
[1749499811431,5.10573293,156.3,156.29,4.91489916]
[1749499811634,5.10573293,156.3,156.29,11.30949916]
[1749499811833,5.10573293,156.3,156.29,4.91489916]
[1749499812528,5.10573293,156.3,156.29,11.30949916]
[1749499818838,5.10573293,156.3,156.29,6.43788741]
[1749499819037,5.10573293,156.3,156.29,11.30949916]
[1749499820033,5.10573293,156.3,156.29,0.04328741]
[1749499820339,5.10573293,156.3,156.29,4.91489916]
[1749499822637,5.10573293,156.3,156.29,11.30949916]
[1749499825239,5.10573293,156.3,156.29,4.91489916]
[1749499825844,5.10573293,156.3,156.29,11.30949916]
[1749499826138,5.11660562,156.3,156.29,11.30949916]
[1749499829741,5.11660562,156.3,156.29,0.04328741]
[1749499830244,5.11660562,156.3,156.29,4.91489916]
[1749499831640,5.11660562,156.3,156.29,11.30949916]
[1749499835047,6.3938,156.31,156.29,11.30949916]
[1749499835247,6.3938,156.31,156.3,4.87161175]
[1749499836944,6.3942,156.3,156.29,0.04328741]
[1749499837146,183.28183261,156.3,156.29,0.04328741]
[1749499837349,183.28183261,156.3,156.29,4.91489916]
[1749499837552,188.44613575,156.3,156.29,4.91489916]
[1749499837850,11.55850314,156.3,156.29,4.91489916]
[1749499840948,11.55850314,156.3,156.23,368.32]
[1749499840949,10.03591489,156.3,156.23,368.32]
[1749499841146,4.87161175,156.28,156.25,4.87161175]
[1749499841347,5.16430314,156.27,156.25,4.87161175]
[1749499841543,10.03591489,156.26,156.21,31.8]
[1749499841748,10.03591489,156.25,156.22,4.87161175]
[1749499841951,10.03591489,156.25,156.22,4.91988391]
[1749499841952,5.16430314,156.24,156.22,4.91988391]
[1749499842151,4.91993898,156.25,156.22,4.91988391]
[1749499842348,6.397,156.23,156.22,4.91988391]
[1749499843358,6.397,156.23,156.22,0.04827216]
[1749499843359,11.55460725,156.23,156.22,0.04827216]
[1749499843553,6.397,156.23,156.22,0.04827216]
[1749499843758,11.26861175,156.23,156.22,0.04827216]
[1749499843968,16.42336159,156.23,156.22,0.04827216]
[1749499845566,11.55174984,156.23,156.22,0.04827216]
[1749499845868,11.26861175,156.23,156.22,0.04827216]
[1749499848571,16.39421467,156.23,156.22,0.04827216]
[1749499849370,6.3983,156.2,156.19,0.25016]
[1749499853976,6.44579232,156.21,156.19,5.12177175]
[1749499854767,6.44579232,156.21,156.19,4.87161175]
[1749499855075,6.3983,156.2,156.19,4.87161175]
[1749499855677,6.44579232,156.21,156.19,4.87161175]
[1749499859583,6.44579232,156.21,156.18,38.26449237]
[1749499859784,6.3984,156.2,156.19,4.87161175]
[1749499863990,6.3986,156.19,156.18,31.86539237]
[1749499864185,11.27021175,156.19,156.18,0.04539237]
[1749499865587,6.3999,156.16,156.12,0.22506]
[1749499865788,4.87161175,156.16,156.12,32.04506]
[1749499866083,6.4004,156.15,156.12,36.91667175]
[1749499866389,4.87161175,156.16,156.13,4.87161175]
[1749499866592,4.87161175,156.15,156.13,0.04799769]
[1749499866785,0.04732586,156.16,156.13,0.04799769]
[1749499866786,11.27231175,156.14,156.13,0.04799769]
[1749499866988,4.87161175,156.14,156.12,0.22506]
[1749499867189,6.4023,156.1,156.09,31.84]
[1749499867388,7.62877555,156.13,156.07,368.54]
[1749499867589,7.62877555,156.13,156.06,31.84]
[1749499867789,7.62877555,156.13,156.06,38.2437]
[1749499867985,0.04423049,156.11,156.08,0.04408756]
[1749499868387,6.4026,156.1,156.08,0.04408756]
[1749499868691,7.67300604,156.11,156.08,0.04408756]
[1749499869086,6.4027,156.09,156.08,0.04408756]
[1749499869494,14.03147555,156.09,156.08,0.04408756]
[1749499870986,2.17623049,156.11,156.08,0.04408756]
[1749499872584,0.04423049,156.11,156.08,0.04408756]
[1749499873391,6.44643049,156.11,156.08,6.44698756]
[1749499874292,6.44643049,156.11,156.08,0.04408756]
[1749499874493,6.4023,156.1,156.08,0.04408756]
[1749499874690,0.04423049,156.11,156.08,6.44718756]
[1749499875591,6.44643049,156.11,156.08,6.44718756]
[1749499876188,0.04423049,156.11,156.09,7.62877555]
[1749499876394,39.46877555,156.2,156.09,7.62877555]
[1749499876590,31.84,156.2,156.14,7.62877555]
[1749499876784,6.3997,156.17,156.14,14.02947555]
[1749499877193,10.911,156.18,156.14,14.02947555]
[1749499877591,0.04435332,156.18,156.15,6.4001]
[1749499877893,0.04435332,156.18,156.14,7.66931205]
[1749499878093,0.04435332,156.18,156.16,7.62877555]
[1749499878590,0.04435332,156.18,156.17,6.3994]
[1749499881296,0.04435332,156.18,156.16,45.86847555]
[1749499881896,0.04435332,156.18,156.16,39.46877555]
[1749499882897,0.04435332,156.18,156.16,45.86857555]
[1749499884199,6.44345332,156.18,156.16,39.46877555]
[1749499884497,0.04435332,156.18,156.16,39.46877555]
[1749499884999,0.04435332,156.18,156.17,6.3994]
[1749499885401,0.04435332,156.18,156.16,45.86847555]
[1749499885596,0.04435332,156.18,156.16,39.46877555]
[1749499886300,6.44365332,156.18,156.16,45.86847555]
[1749499886499,0.04435332,156.18,156.16,45.86847555]
[1749499887198,0.04435332,156.18,156.16,39.46877555]
[1749499887601,6.3994,156.17,156.16,39.46877555]
[1749499888904,0.04435332,156.18,156.17,6.3994]
[1749499894004,0.04435332,156.18,156.16,31.84]
[1749499894501,6.44365332,156.18,156.16,31.84]
[1749499897305,6.3994,156.17,156.16,31.84]
[1749499901604,6.44355332,156.18,156.16,38.2399]
[1749499901811,6.44355332,156.18,156.16,31.84]
[1749499902806,6.44355332,156.18,156.16,38.2397]
[1749499904212,0.04435332,156.18,156.17,6.3994]
[1749499906914,6.44335332,156.18,156.16,38.2397]
[1749499907715,6.3994,156.17,156.16,31.84]
[1749499908108,0.04435332,156.18,156.14,7.66931205]
[1749499908309,6.4001,156.16,156.14,0.0405365]
[1749499908510,0.04435332,156.18,156.14,0.0405365]
[1749499908716,6.4003,156.15,156.14,0.0405365]
[1749499913222,6.4,156.16,156.14,0.0405365]
[1749499915316,6.4,156.16,156.14,6.4411365]
[1749499919525,6.4,156.16,156.14,0.0405365]
[1749499919723,6.4003,156.15,156.14,0.0405365]
[1749499921318,6.4,156.16,156.14,0.0405365]
[1749499922823,6.4003,156.15,156.14,0.0405365]
[1749499932031,19.14802187,156.15,156.06,31.8]
[1749499932231,7.62840322,156.12,156.06,31.8]
[1749499932426,6.4036,156.07,156.06,31.8]
[1749499933934,6.4036,156.07,156.05,7.67719755]
[1749499933935,5.22106617,156.07,156.05,7.67719755]
[1749499934133,0.04650642,156.08,156.05,7.67719755]
[1749499934533,6.4038,156.07,156.05,7.67719755]
[1749499935440,6.404,156.06,156.05,7.67719755]
[1749499935933,6.404,156.06,156.05,0.04879433]
[1749499946448,6.4038,156.07,156.05,0.04879433]
[1749499946751,0.04650642,156.08,156.06,14.03230322]
[1749499947049,0.04650642,156.08,156.06,7.62840322]
[1749499947752,0.04650642,156.08,156.07,6.4036]
[1749499953351,0.04650642,156.08,156.06,14.03220322]
[1749499956054,6.44970642,156.08,156.06,14.03220322]
[1749499956855,6.4036,156.07,156.06,7.62840322]
[1749499957056,6.4036,156.07,156.05,31.84879433]
[1749499957252,6.4036,156.07,156.05,39.47719755]
[1749499958760,6.404,156.06,156.05,31.84879433]
[1749499972873,6.404,156.06,156.05,0.04879433]
[1749499976278,11.61648064,156.06,156.05,0.04879433]
[1749499981284,11.61648064,156.06,156.05,4.93388914]
[1749499981778,6.404,156.06,156.05,4.93388914]
[1749499984183,6.404,156.06,156.05,0.04879433]
[1749499984384,11.61715266,156.06,156.05,4.93388914]
[1749499984584,6.404,156.06,156.05,4.93388914]
[1749499987676,6.404,156.06,156.05,0.04879433]
[1749499987873,11.62008626,156.06,156.05,0.04879433]
[1749499990588,16.50518107,156.06,156.05,0.04879433]
[1749499990884,4.88509481,156.04,156.01,4.88509481]
[1749499991084,5.21608626,156.03,156.01,4.88509481]
[1749499991288,6.4057,156.02,156.01,4.88509481]
[1749499992889,11.61569837,156.02,156.01,4.88509481]
[1749499993585,6.4061,156.01,156.0,4.92930476]
[1749499993889,6.4061,156.01,156.0,0.04420995]